bitfinex-derivatives/quotes_BTCF0:USTF0_20250902
["timestamp","ask_amount","ask_price","bid_price","bid_amount"]
[1756781142991,0.605292,109690.0,109680.0,0.57751447]
[1756781143183,0.174492,109690.0,109680.0,0.93831447]
[1756781143984,0.172492,109690.0,109680.0,0.93831447]
[1756781144184,0.171492,109690.0,109680.0,0.93831447]
[1756781144485,0.103112,109690.0,109680.0,0.93831447]
[1756781144685,0.103112,109690.0,109680.0,1.25390631]
[1756781145782,0.126632,109690.0,109680.0,1.18831447]
[1756781146176,0.103112,109690.0,109680.0,1.18831447]
[1756781147089,0.103112,109690.0,109680.0,2.03951447]
[1756781147685,0.102112,109690.0,109680.0,2.03951447]
[1756781147878,0.122252,109690.0,109680.0,1.18931447]
[1756781148074,0.122252,109690.0,109680.0,2.04051447]
[1756781148478,0.122252,109690.0,109680.0,0.93931447]
[1756781148784,0.168532,109690.0,109680.0,0.93931447]
[1756781149178,0.102112,109690.0,109680.0,0.93931447]
[1756781149382,0.102112,109690.0,109680.0,1.18931447]
[1756781149686,0.102112,109690.0,109680.0,1.18831447]
[1756781149878,0.103112,109690.0,109680.0,2.03947447]
[1756781150281,0.103112,109690.0,109680.0,2.10506631]
[1756781150492,0.103112,109690.0,109680.0,2.03947447]
[1756781151186,0.103112,109690.0,109680.0,2.10506631]
[1756781152979,0.103112,109690.0,109680.0,2.03947447]
[1756781153299,0.102112,109690.0,109680.0,2.03947447]
[1756781153474,0.102112,109690.0,109680.0,2.04047447]
[1756781153983,0.102112,109690.0,109680.0,2.03947447]
[1756781154592,0.102112,109690.0,109680.0,2.04047447]
[1756781155091,0.103112,109690.0,109680.0,2.04047447]
[1756781155293,0.103112,109690.0,109680.0,2.10606631]
[1756781156089,0.103112,109690.0,109680.0,1.25490631]
[1756781156283,0.123252,109690.0,109680.0,2.03943447]
[1756781156491,0.103112,109690.0,109680.0,2.03943447]
[1756781159190,0.103112,109690.0,109680.0,1.78943447]
[1756781159387,0.103112,109690.0,109680.0,1.85502631]
[1756781162680,0.103112,109690.0,109680.0,2.11943447]
[1756781162885,0.103112,109690.0,109680.0,2.18502631]
[1756781163085,0.103112,109690.0,109680.0,2.20502631]
[1756781164183,0.103112,109690.0,109680.0,2.20602631]
[1756781164682,0.102112,109690.0,109680.0,0.53054397]
[1756781164886,0.148392,109690.0,109680.0,1.85594631]
[1756781165095,0.125632,109690.0,109680.0,1.85594631]
[1756781165281,0.125632,109690.0,109680.0,1.79035447]
[1756781165482,0.148392,109690.0,109680.0,1.31599213]
[1756781165682,0.148392,109690.0,109680.0,1.85594631]
[1756781165878,0.148392,109690.0,109680.0,1.79035447]
[1756781166186,0.126632,109690.0,109680.0,1.78935447]
[1756781167094,0.126632,109690.0,109680.0,1.85494631]
[1756781168190,0.126632,109690.0,109680.0,1.00390631]
[1756781168391,1.36837317,109690.0,109680.0,0.3403333]
[1756781168695,1.36837317,109690.0,109680.0,0.16874397]
[1756781169095,1.36837317,109690.0,109680.0,0.40592514]
[1756781169293,1.32837317,109690.0,109680.0,0.40592514]
[1756781169689,1.01837317,109690.0,109680.0,0.40592514]
[1756781169894,1.03837317,109690.0,109680.0,0.40592514]
[1756781170090,1.01837317,109690.0,109680.0,0.16874397]
[1756781170295,1.01837317,109690.0,109680.0,0.40592514]
[1756781170492,0.170392,109690.0,109680.0,1.00390631]
[1756781170690,0.103112,109690.0,109680.0,1.00390631]
[1756781171096,0.170752,109690.0,109680.0,0.16874397]
[1756781171292,0.103112,109690.0,109680.0,0.64310631]
[1756781171496,0.126992,109690.0,109680.0,0.64310631]
[1756781173296,0.126992,109690.0,109680.0,1.00390631]
[1756781173895,0.126992,109690.0,109680.0,0.52954397]
[1756781174088,0.126992,109690.0,109680.0,1.00390631]
[1756781175501,0.103112,109690.0,109680.0,1.00390631]
[1756781175902,0.103112,109690.0,109680.0,0.93831447]
[1756781177603,0.103112,109690.0,109680.0,1.85108748]
[1756781178003,0.103112,109690.0,109680.0,1.87666684]
[1756781178198,0.0865826,109690.0,109680.0,1.87666684]
[1756781178702,0.0865826,109690.0,109680.0,1.95863175]
[1756781179299,0.01850338,109720.0,109710.0,0.08126]
[1756781179503,0.33850338,109720.0,109710.0,1.83255092]
[1756781179703,0.33850338,109720.0,109710.0,1.84178364]
[1756781180104,0.36238338,109720.0,109710.0,1.53020117]
[1756781180305,0.33850338,109720.0,109710.0,1.53020117]
[1756781180608,0.34550338,109720.0,109710.0,1.53020117]
[1756781180806,0.08550338,109720.0,109710.0,1.53020117]
[1756781181112,0.08550338,109720.0,109710.0,1.57901742]
[1756781181491,0.08550338,109720.0,109710.0,2.15619859]
[1756781181492,0.007,109720.0,109710.0,2.15619859]
[1756781181709,0.007,109720.0,109710.0,2.7427559]
[1756781182005,0.007,109720.0,109710.0,2.50557473]
[1756781182301,0.007,109720.0,109710.0,2.44040615]
[1756781182601,0.109112,109720.0,109710.0,2.44040615]
[1756781182800,0.109112,109720.0,109710.0,1.58884615]
[1756781182996,0.109112,109720.0,109710.0,2.44040615]
[1756781183608,0.109112,109720.0,109710.0,1.58884615]
[1756781183807,0.109112,109720.0,109710.0,2.44016615]
[1756781184610,0.109112,109720.0,109710.0,2.44000615]
[1756781187910,0.109112,109720.0,109710.0,2.43968615]
[1756781188205,0.109112,109720.0,109710.0,1.58884615]
[1756781188410,0.109112,109720.0,109710.0,2.43964615]
[1756781190311,0.109112,109720.0,109710.0,1.58884615]
[1756781190510,0.109112,109720.0,109710.0,2.43960615]
[1756781191312,0.106112,109720.0,109710.0,2.12060615]
[1756781191502,0.106112,109720.0,109710.0,2.41160615]
[1756781191503,0.102112,109720.0,109710.0,2.41160615]
[1756781192102,0.102112,109720.0,109710.0,2.42160615]
[1756781192903,0.102112,109720.0,109710.0,1.57084615]
[1756781193105,0.102112,109720.0,109710.0,0.51722743]
[1756781193106,0.96693317,109720.0,109710.0,0.51722743]
[1756781193311,1.01773317,109720.0,109710.0,0.3936086]
[1756781193613,0.780552,109720.0,109710.0,0.3936086]
[1756781193814,0.419752,109720.0,109710.0,0.3936086]
[1756781194508,0.419752,109720.0,109710.0,1.2432886]
[1756781194708,0.419752,109720.0,109710.0,1.2442886]
[1756781195419,0.419752,109720.0,109710.0,1.2432886]
[1756781196304,0.419752,109720.0,109710.0,1.2422886]
[1756781199513,0.419752,109720.0,109710.0,1.24211385]
[1756781200030,0.399612,109720.0,109710.0,1.24211385]
[1756781200320,0.102112,109720.0,109710.0,1.24211385]
[1756781200526,0.102112,109720.0,109710.0,1.83992027]
[1756781200717,0.102112,109720.0,109710.0,1.60291385]
[1756781200915,0.102112,109720.0,109710.0,1.83992027]
[1756781203213,0.102112,109720.0,109710.0,1.85992027]
[1756781203409,0.102112,109720.0,109710.0,2.14992027]
[1756781204512,0.102112,109720.0,109710.0,2.49106637]
[1756781205015,0.102112,109720.0,109710.0,2.39992027]
[1756781205216,0.102112,109720.0,109710.0,2.46508885]
[1756781205418,0.102112,109720.0,109710.0,2.55623495]
[1756781205617,0.09772589,109750.0,109740.0,0.08353]
[1756781205821,0.40772589,109750.0,109740.0,1.17117642]
[1756781206422,0.38758589,109750.0,109740.0,1.17117642]
[1756781206617,0.40772589,109750.0,109740.0,0.32053642]
[1756781207226,0.40972589,109750.0,109740.0,0.32053642]
[1756781208120,0.41272589,109750.0,109740.0,0.32053642]
[1756781208724,0.51483789,109750.0,109740.0,0.32053642]
[1756781215933,0.53571391,109750.0,109740.0,0.32053642]
[1756781216934,1.13352033,109750.0,109740.0,0.02354]
[1756781217234,1.12402751,109750.0,109740.0,0.02354]
[1756781217429,1.12402751,109750.0,109740.0,0.04745]
[1756781217823,0.06631,109740.0,109730.0,0.06803865]
[1756781218034,0.68419157,109740.0,109730.0,0.06803865]
[1756781218225,0.44718515,109740.0,109730.0,0.10411865]
[1756781218421,0.08718515,109740.0,109730.0,0.10411865]
[1756781218734,0.14917507,109750.0,109730.0,0.70192507]
[1756781218935,0.59421917,109750.0,109740.0,0.32053642]
[1756781219536,0.59421917,109750.0,109740.0,0.08353]
[1756781219736,0.95501917,109750.0,109740.0,0.32053642]
[1756781219931,0.95601917,109750.0,109740.0,0.32053642]
[1756781220131,0.95301917,109750.0,109740.0,0.32053642]
[1756781220835,0.06631,109740.0,109730.0,0.02058865]
[1756781221031,1.87539052,109740.0,109730.0,0.02058865]
[1756781221235,1.21447779,109740.0,109730.0,0.02058865]
[1756781221930,1.21447779,109740.0,109730.0,0.04412865]
[1756781222137,1.69828052,109740.0,109730.0,0.42883865]
[1756781222322,0.84788052,109740.0,109730.0,0.10411865]
[1756781222526,1.69828052,109740.0,109730.0,0.10411865]
[1756781222730,0.6218741,109740.0,109730.0,0.46491865]
[1756781222926,0.6218743,109740.0,109730.0,0.10411865]
[1756781223130,0.6218743,109740.0,109730.0,0.46491865]
[1756781223331,0.6238743,109740.0,109730.0,0.46491865]
[1756781223528,0.6238743,109740.0,109730.0,0.42883865]
[1756781223731,0.86088072,109740.0,109730.0,0.04412865]
[1756781224022,0.2738743,109740.0,109730.0,0.10411865]
[1756781224233,1.1942743,109740.0,109730.0,0.70192507]
[1756781224429,1.1942743,109740.0,109730.0,0.46491865]
[1756781224830,0.8842743,109740.0,109730.0,0.70192507]
[1756781225136,0.8742743,109740.0,109730.0,0.70192507]
[1756781225335,1.2863863,109740.0,109730.0,0.46491865]
[1756781225546,1.0463863,109740.0,109730.0,0.46491865]
[1756781225837,1.2963863,109740.0,109730.0,0.46491865]
[1756781226038,0.955512,109740.0,109730.0,0.46491865]
[1756781226233,1.315512,109740.0,109730.0,0.46491865]
[1756781226438,0.955512,109740.0,109730.0,0.10411865]
[1756781226637,1.035512,109740.0,109730.0,0.10411865]
[1756781227339,1.27996636,109740.0,109730.0,0.10411865]
[1756781228140,0.90996636,109740.0,109730.0,0.10411865]
[1756781228339,1.23996636,109740.0,109730.0,0.10411865]
[1756781229242,0.432112,109740.0,109730.0,0.10411865]
[1756781229440,1.282512,109740.0,109730.0,0.46491865]
[1756781229735,0.232112,109740.0,109730.0,0.46491865]
[1756781229937,1.082512,109740.0,109730.0,0.70192507]
[1756781230534,0.90696636,109740.0,109730.0,0.70192507]
[1756781230747,1.01696636,109740.0,109730.0,0.70192507]
[1756781231339,1.25696636,109740.0,109730.0,0.70192507]
[1756781231528,0.90696636,109740.0,109730.0,0.70192507]
[1756781231737,1.21696636,109740.0,109730.0,0.70192507]
[1756781232035,1.45397278,109740.0,109730.0,0.42883865]
[1756781232240,1.45397278,109740.0,109730.0,0.02058865]
[1756781233243,1.45397278,109740.0,109730.0,0.04407865]
[1756781233440,1.40842714,109740.0,109730.0,0.06676865]
[1756781233642,1.65842714,109740.0,109720.0,0.39639]
[1756781233834,0.23700642,109730.0,109720.0,0.44257]
[1756781234034,0.61700642,109730.0,109720.0,0.44257]
[1756781235242,0.62802714,109730.0,109720.0,0.44257]
[1756781235443,0.39102072,109730.0,109720.0,0.44257]
[1756781235643,0.62802714,109730.0,109720.0,0.44257]
[1756781236344,0.39102072,109730.0,109720.0,0.44257]
[1756781236543,0.38272307,109750.0,109730.0,0.08177]
[1756781236740,1.08740642,109740.0,109730.0,0.08177]
[1756781236942,1.39740642,109740.0,109730.0,0.08177]
[1756781237145,1.64740642,109740.0,109730.0,0.08177]
[1756781237439,1.64740642,109740.0,109730.0,0.04618]
[1756781237645,1.64740642,109740.0,109720.0,0.67957642]
[1756781237844,1.39840642,109740.0,109720.0,0.44257]
[1756781238037,0.001,109730.0,109720.0,0.44257]
[1756781238235,0.321,109730.0,109720.0,0.44257]
[1756781238643,0.423112,109730.0,109720.0,0.44257]
[1756781238845,0.103112,109730.0,109720.0,0.44257]
[1756781239039,0.102112,109730.0,109720.0,0.67957642]
[1756781239438,0.952512,109730.0,109720.0,0.67957642]
[1756781239743,0.90696636,109730.0,109720.0,0.67957642]
[1756781240045,1.47397278,109730.0,109720.0,0.44257]
[1756781240339,1.49265503,109730.0,109710.0,0.44257]
[1756781240552,1.49265503,109730.0,109710.0,0.3608]
[1756781240553,0.23700642,109720.0,109710.0,0.3608]
[1756781240741,0.6908,109720.0,109710.0,0.04618]
[1756781241045,0.92780642,109720.0,109700.0,0.45733]
[1756781241246,1.08740642,109710.0,109700.0,0.45733]
[1756781241446,1.43740642,109710.0,109700.0,0.45733]
[1756781241943,1.45575214,109710.0,109700.0,0.42174]
[1756781242144,1.45575214,109710.0,109700.0,0.45733]
[1756781242444,1.45675214,109710.0,109700.0,0.45733]
[1756781242642,1.4112065,109710.0,109700.0,0.45733]
[1756781242844,0.01934572,109710.0,109700.0,0.45733]
[1756781243044,0.86974572,109710.0,109700.0,0.45733]
[1756781243642,0.02034572,109710.0,109700.0,0.45733]
[1756781243945,0.02034572,109710.0,109700.0,0.69433642]
[1756781245347,0.07691208,109710.0,109700.0,0.69433642]
[1756781245542,0.03136644,109710.0,109700.0,0.69433642]
[1756781248655,0.22282722,109720.0,109700.0,0.65874642]
[1756781248838,1.44326722,109720.0,109710.0,0.08177]
[1756781249042,0.61648867,109730.0,109720.0,0.08177]
[1756781249243,0.98821924,109730.0,109720.0,0.08177]
[1756781249442,1.47785924,109730.0,109720.0,0.08177]
[1756781249850,1.45612867,109730.0,109720.0,0.08177]
[1756781250953,1.45712867,109730.0,109720.0,0.08177]
[1756781251259,1.45712867,109730.0,109720.0,0.02349]
[1756781251260,1.4788578,109730.0,109720.0,0.02349]
[1756781251453,1.45712867,109730.0,109720.0,0.02349]
[1756781251648,1.41258303,109730.0,109720.0,0.02349]
[1756781251846,1.51469503,109730.0,109720.0,0.02349]
[1756781252556,1.51469503,109730.0,109720.0,0.08177]
[1756781253255,1.53642413,109730.0,109720.0,0.08177]
[1756781254848,1.49087849,109730.0,109720.0,0.04618]
[1756781255248,1.85167849,109730.0,109720.0,0.04618]
[1756781255957,1.6870811,109730.0,109720.0,0.08313]
[1756781256156,1.92408752,109730.0,109720.0,0.08313]
[1756781256860,1.92408752,109730.0,109720.0,0.04618]
[1756781257164,1.92408752,109730.0,109710.0,0.44353]
[1756781257350,0.23700642,109720.0,109710.0,0.44353]
[1756781257554,0.61873552,109720.0,109710.0,0.44353]
[1756781257750,0.3817291,109720.0,109710.0,0.3608]
[1756781257960,0.61873552,109720.0,109710.0,0.3608]
[1756781258267,0.61873552,109720.0,109710.0,0.08273]
[1756781258557,0.61873552,109720.0,109700.0,0.41251]
[1756781258770,1.08744642,109710.0,109700.0,0.37556]
[1756781258950,1.82824642,109710.0,109700.0,0.06509]
[1756781259249,1.82824642,109710.0,109700.0,0.01931]
[1756781259450,2.08726954,109710.0,109700.0,0.00455]
[1756781260054,2.08926954,109710.0,109700.0,0.00455]
[1756781260254,2.26284265,109710.0,109700.0,0.00455]
[1756781260454,2.51284265,109710.0,109700.0,0.00455]
[1756781260658,2.44138154,109710.0,109700.0,0.00455]
[1756781260860,2.3968359,109710.0,109700.0,0.00455]
[1756781261060,1.96808708,109710.0,109700.0,0.10223]
[1756781261260,2.20523431,109710.0,109700.0,0.06528]
[1756781262466,2.20523431,109710.0,109700.0,0.10223]
[1756781262658,2.21427897,109710.0,109700.0,0.10223]
[1756781263165,0.75303897,109710.0,109700.0,0.10223]
[1756781263368,0.49415666,109710.0,109700.0,0.70017723]
[1756781263665,1.58174389,109710.0,109700.0,0.46303]
[1756781263860,1.89699825,109710.0,109700.0,0.33937723]
[1756781264065,1.89699825,109710.0,109700.0,0.10223]
[1756781264364,1.55793051,109710.0,109700.0,0.10223]
[1756781264565,1.53419825,109710.0,109700.0,0.10223]
[1756781265464,1.29705102,109710.0,109700.0,0.10223]
[1756781265666,1.53419825,109710.0,109700.0,0.10223]
[1756781265967,1.5559315,109710.0,109700.0,0.10223]
[1756781266770,1.31878427,109710.0,109700.0,0.33937723]
[1756781266963,1.31878427,109710.0,109700.0,0.46303]
[1756781266964,1.51038586,109710.0,109700.0,0.46303]
[1756781267162,1.51038586,109710.0,109700.0,0.70017723]
[1756781268963,0.30499979,109740.0,109700.0,1.73752169]
[1756781268964,0.04924968,109740.0,109700.0,1.73752169]
[1756781269272,0.14324307,109750.0,109730.0,1.27862446]
[1756781269464,0.14324307,109750.0,109740.0,0.68067723]
[1756781269465,0.47324307,109750.0,109740.0,0.68067723]
[1756781269769,0.7103903,109750.0,109740.0,0.68067723]
[1756781270072,0.33,109750.0,109740.0,0.91782446]
[1756781270267,0.33,109750.0,109740.0,1.16782446]
[1756781270689,0.334,109750.0,109740.0,1.16782446]
[1756781270883,0.34,109750.0,109740.0,1.16782446]
[1756781271984,0.01,109750.0,109740.0,1.16782446]
[1756781272176,0.112112,109750.0,109740.0,1.16782446]
[1756781272585,0.112112,109750.0,109740.0,1.50782446]
[1756781272777,0.108112,109750.0,109740.0,1.18782446]
[1756781272976,0.05656636,109750.0,109740.0,0.69353]
[1756781273280,0.05656636,109750.0,109740.0,1.16782446]
[1756781273482,0.05656636,109750.0,109740.0,1.47782446]
[1756781273681,0.05656636,109750.0,109740.0,1.18782446]
[1756781274388,0.05656636,109750.0,109740.0,1.16782446]
[1756781274594,0.05656636,109750.0,109740.0,1.18782446]
[1756781274891,0.05656636,109750.0,109740.0,1.49782446]
[1756781275188,0.05656636,109750.0,109740.0,1.16782446]
[1756781275388,0.05656636,109750.0,109740.0,1.18782446]
[1756781275886,0.05656636,109750.0,109740.0,1.16782446]
[1756781276190,0.01102072,109750.0,109740.0,2.01802446]
[1756781277476,0.01102072,109750.0,109740.0,2.09190089]
[1756781279186,0.23714723,109770.0,109760.0,0.08273]
[1756781279486,0.60714723,109770.0,109760.0,0.44353]
[1756781279884,0.61603284,109770.0,109760.0,0.44353]
[1756781280086,0.61603284,109770.0,109760.0,0.68067723]
[1756781280387,0.61603284,109770.0,109760.0,0.44353]
[1756781280581,0.61903284,109770.0,109760.0,0.44353]
[1756781280990,0.61903284,109770.0,109760.0,0.68067723]
[1756781281385,0.62103284,109770.0,109760.0,0.68067723]
[1756781282286,0.7116284,109770.0,109760.0,0.68067723]
[1756781282489,0.72314484,109770.0,109760.0,0.68067723]
[1756781283292,0.48599761,109770.0,109760.0,0.92237446]
[1756781284095,0.48599761,109770.0,109760.0,0.44808]
[1756781284286,0.48599761,109770.0,109760.0,0.92237446]
[1756781284485,0.48599761,109770.0,109760.0,0.44808]
[1756781284794,0.48599761,109770.0,109760.0,0.92237446]
[1756781288796,0.477112,109770.0,109760.0,0.92237446]
[1756781295391,0.477112,109770.0,109760.0,1.53317446]
[1756781295591,0.477112,109770.0,109760.0,2.38293446]
[1756781296383,0.477112,109770.0,109760.0,1.53317446]
[1756781296589,0.477112,109770.0,109760.0,2.38293446]
[1756781297296,0.49821375,109770.0,109760.0,2.38293446]
[1756781297682,0.49821375,109770.0,109760.0,2.13293446]
[1756781297994,0.49821375,109770.0,109760.0,1.28317446]
[1756781298193,0.49821375,109770.0,109760.0,2.13289446]
[1756781299794,0.49821375,109770.0,109760.0,1.28317446]
[1756781300000,0.49821375,109770.0,109760.0,2.13285446]
[1756781300200,0.73536098,109770.0,109760.0,0.44808]
[1756781300398,0.73536098,109770.0,109760.0,0.41113]
[1756781300690,1.58504098,109770.0,109760.0,0.41113]
[1756781300888,1.83504098,109770.0,109760.0,0.41113]
[1756781301089,1.83504098,109770.0,109760.0,0.05033]
[1756781301292,2.43298821,109770.0,109760.0,0.00455]
[1756781301697,2.43298821,109770.0,109730.0,0.46265253]
[1756781301698,2.71938512,109770.0,109730.0,0.46265253]
[1756781301896,0.59794723,109760.0,109750.0,0.0594]
[1756781302195,0.59794723,109760.0,109750.0,0.33200723]
[1756781302196,0.62824898,109760.0,109750.0,0.33200723]
[1756781302390,0.62824898,109760.0,109750.0,0.69280723]
[1756781302391,0.39110175,109760.0,109750.0,0.69280723]
[1756781302604,0.02110175,109760.0,109750.0,2.02959446]
[1756781302897,0.107112,109770.0,109760.0,0.08122]
[1756781303199,0.44811093,109770.0,109760.0,0.91631446]
[1756781303596,0.44511093,109770.0,109760.0,0.91631446]
[1756781303902,0.44311093,109770.0,109760.0,0.91631446]
[1756781304099,0.68025816,109770.0,109760.0,0.44202]
[1756781304288,0.93025816,109770.0,109760.0,0.44202]
[1756781305407,0.93225816,109770.0,109760.0,0.44202]
[1756781305600,0.93525816,109770.0,109760.0,0.44202]
[1756781308904,0.93525816,109770.0,109760.0,0.40656]
[1756781309101,0.93525816,109770.0,109760.0,0.44202]
[1756781310108,1.78485816,109770.0,109760.0,0.44202]
[1756781310407,0.93525816,109770.0,109760.0,0.44202]
[1756781310605,1.78485816,109770.0,109760.0,0.44202]
[1756781313308,1.78485816,109770.0,109760.0,0.08122]
[1756781319118,0.69811093,109770.0,109760.0,0.67916723]
[1756781319323,0.44811093,109770.0,109760.0,1.16631446]
[1756781321112,1.04605816,109770.0,109750.0,0.47894711]
[1756781321325,1.04605816,109770.0,109750.0,0.09753]
[1756781321326,1.33049446,109760.0,109750.0,0.09753]
[1756781321508,1.69412538,109760.0,109750.0,0.01819]
[1756781321822,1.69412538,109760.0,109750.0,0.06465]
[1756781321823,1.73412538,109760.0,109750.0,0.06465]
[1756781322018,1.73412538,109760.0,109750.0,0.10208]
[1756781322219,1.14719893,109760.0,109750.0,0.10208]
[1756781322419,0.29099893,109760.0,109750.0,0.46288]
[1756781322717,0.04099893,109760.0,109750.0,0.69980645]
[1756781322922,0.04299893,109760.0,109750.0,0.69980645]
[1756781324020,0.04399893,109760.0,109750.0,0.69980645]
[1756781325319,0.14611093,109760.0,109750.0,0.69980645]
[1756781326124,0.125112,109760.0,109750.0,0.46288]
[1756781328524,0.123112,109760.0,109750.0,0.46288]
[1756781328725,0.123112,109760.0,109750.0,0.46388]
[1756781328920,0.122112,109760.0,109750.0,0.70080645]
[1756781329122,0.122112,109760.0,109750.0,0.46488]
[1756781329429,0.122112,109760.0,109750.0,0.70180645]
[1756781335026,0.122112,109760.0,109750.0,0.46488]
[1756781335329,0.122112,109760.0,109750.0,0.70180645]
[1756781338228,0.122112,109760.0,109750.0,0.76679041]
[1756781338428,0.122112,109760.0,109750.0,0.70180645]
[1756781340332,0.422112,109760.0,109750.0,0.70180645]
[1756781340532,0.422112,109760.0,109750.0,0.69725645]
[1756781342632,0.422112,109760.0,109750.0,0.46033]
[1756781343229,0.152112,109760.0,109750.0,0.46033]
[1756781343430,0.152112,109760.0,109750.0,0.69725645]
[1756781345036,0.152112,109760.0,109750.0,0.46033]
[1756781345225,0.152112,109760.0,109750.0,0.69725645]
[1756781346639,0.102112,109760.0,109750.0,0.69725645]
[1756781347433,0.462112,109760.0,109750.0,0.46033]
[1756781347628,0.102112,109760.0,109750.0,0.46033]
[1756781347938,0.412112,109760.0,109750.0,0.46033]
[1756781348138,0.412112,109760.0,109750.0,0.52531396]
[1756781348534,0.102112,109760.0,109750.0,1.29725645]
[1756781348839,0.102112,109760.0,109750.0,1.36224041]
[1756781349937,0.102112,109760.0,109750.0,1.32224041]
[1756781350333,0.102112,109760.0,109750.0,1.01224041]
[1756781350534,0.102112,109760.0,109750.0,1.03224041]
[1756781351450,0.102112,109760.0,109750.0,1.32224041]
[1756781351636,0.102112,109760.0,109750.0,1.39224041]
[1756781352040,0.102112,109760.0,109750.0,1.36224041]
[1756781353344,0.102112,109760.0,109750.0,1.6252944]
[1756781353534,0.102112,109760.0,109750.0,1.38836795]
[1756781354240,0.0252552,109780.0,109760.0,0.0910955]
[1756781354442,0.0252552,109780.0,109770.0,2.1300529]
[1756781354636,0.0252552,109780.0,109770.0,2.56499229]
[1756781355142,0.0252552,109780.0,109770.0,2.4998529]
[1756781355833,0.0272552,109780.0,109770.0,2.4998529]
[1756781357039,0.0272552,109780.0,109770.0,2.5044029]
[1756781357442,0.1293672,109780.0,109770.0,2.5044029]
[1756781357948,0.1303672,109780.0,109770.0,2.5044029]
[1756781358845,0.1303672,109780.0,109770.0,2.51363858]
[1756781359543,0.1303672,109780.0,109770.0,1.66107858]
[1756781359746,0.1303672,109780.0,109770.0,2.51343858]
[1756781361542,0.1303672,109780.0,109770.0,1.66107858]
[1756781361731,0.1303672,109780.0,109770.0,1.29107858]
[1756781361939,0.1303672,109780.0,109770.0,2.48335858]
[1756781362644,0.1303672,109780.0,109770.0,1.63107858]
[1756781362942,0.1303672,109780.0,109770.0,1.29107858]
[1756781363248,0.1303672,109780.0,109770.0,2.52307858]
[1756781363449,0.1303672,109780.0,109770.0,2.16307858]
[1756781363948,0.1293672,109780.0,109770.0,2.16307858]
[1756781364145,0.1293672,109780.0,109770.0,2.52407858]
[1756781364353,0.1293672,109780.0,109770.0,2.50407858]
[1756781364845,0.1293672,109780.0,109770.0,2.25517348]
[1756781365049,0.1293672,109780.0,109770.0,1.40317348]
[1756781365250,0.1293672,109780.0,109770.0,2.25461348]
[1756781365748,0.1273672,109780.0,109770.0,2.25561348]
[1756781365950,0.1273672,109780.0,109770.0,2.14443858]
[1756781366146,0.1273672,109780.0,109770.0,2.51443858]
[1756781366449,0.1273672,109780.0,109770.0,2.16443858]
[1756781366651,0.1273672,109780.0,109770.0,2.52443858]
[1756781366851,0.1273672,109780.0,109770.0,2.46443858]
[1756781367147,0.1273672,109780.0,109770.0,2.14443858]
[1756781367350,0.1273672,109780.0,109770.0,2.16443858]
[1756781368643,0.1273672,109780.0,109770.0,1.31307858]
[1756781368950,0.1273672,109780.0,109770.0,2.16403858]
[1756781369349,0.1273672,109780.0,109770.0,1.31307858]
[1756781369649,0.1273672,109780.0,109770.0,2.16343858]
[1756781373448,0.1273672,109780.0,109770.0,2.25453368]
[1756781373955,0.1273672,109780.0,109770.0,2.16343858]
[1756781374543,0.1273672,109780.0,109770.0,2.57453358]
[1756781374948,0.1273672,109780.0,109770.0,2.63967297]
[1756781377051,0.006,109800.0,109780.0,0.1389567]
[1756781377359,0.316,109800.0,109790.0,1.89225645]
[1756781377551,0.316,109800.0,109790.0,1.39233645]
[1756781377746,0.316,109800.0,109790.0,2.24225645]
[1756781378855,0.318,109800.0,109790.0,2.24225645]
[1756781379161,0.319,109800.0,109790.0,2.24225645]
[1756781379661,0.319,109800.0,109790.0,2.31556726]
[1756781379856,0.319,109800.0,109790.0,2.07864081]
[1756781380153,0.109,109800.0,109790.0,2.31556726]
[1756781380359,0.009,109800.0,109790.0,2.33608332]
[1756781380856,0.009,109800.0,109790.0,2.29608332]
[1756781381056,0.009,109800.0,109790.0,2.87408817]
[1756781381563,0.009,109800.0,109790.0,2.87335813]
[1756781381868,0.05415694,109820.0,109810.0,0.03594]
[1756781382058,0.38415694,109820.0,109810.0,2.14833836]
[1756781382253,0.38415694,109820.0,109810.0,2.26851011]
[1756781382460,0.05415694,109820.0,109810.0,2.6936495]
[1756781382653,0.05415694,109820.0,109810.0,3.18021093]
[1756781382864,0.05415694,109820.0,109810.0,2.8629478]
[1756781383159,0.05615694,109820.0,109810.0,1.7527478]
[1756781383363,0.05615694,109820.0,109810.0,1.68760841]
[1756781383564,0.05715694,109820.0,109810.0,2.54804841]
[1756781384468,0.05615694,109820.0,109810.0,2.55004841]
[1756781384959,0.05415694,109820.0,109810.0,2.64411031]
[1756781386255,0.05415694,109820.0,109810.0,2.89411031]
[1756781387167,0.05415694,109820.0,109810.0,3.13067174]
[1756781387964,0.05415694,109820.0,109810.0,1.94260841]
[1756781388165,0.05415694,109820.0,109810.0,2.64359121]
[1756781388375,0.05415694,109820.0,109810.0,2.90929121]
[1756781388870,0.05415694,109820.0,109810.0,2.04937121]
[1756781389065,0.05415694,109820.0,109810.0,2.90957121]
[1756781389266,0.05415694,109820.0,109810.0,2.90941081]
[1756781389467,0.05415694,109820.0,109810.0,1.6034061]
[1756781389659,0.05415694,109820.0,109810.0,2.93656896]
[1756781389862,0.05415694,109820.0,109810.0,3.03091136]
[1756781392666,0.05415694,109820.0,109810.0,2.07652896]
[1756781392866,0.05415694,109820.0,109810.0,3.03395136]
[1756781393371,0.05415694,109820.0,109810.0,2.16759136]
[1756781393676,0.05415694,109820.0,109810.0,3.03339136]
[1756781394475,0.05415694,109820.0,109810.0,2.76769136]
[1756781395167,0.05415694,109820.0,109810.0,1.90189136]
[1756781395366,0.05415694,109820.0,109810.0,2.76753136]
[1756781396073,0.05415694,109820.0,109810.0,3.00409279]
[1756781397974,0.05415694,109820.0,109810.0,2.76753136]
[1756781399372,0.05415694,109820.0,109810.0,1.69260841]
[1756781399562,0.05415694,109820.0,109810.0,2.55952841]
[1756781399875,0.05415694,109820.0,109810.0,1.69260841]
[1756781400062,0.05415694,109820.0,109810.0,1.31260841]
[1756781400267,0.30415694,109820.0,109810.0,2.17940841]
[1756781400670,0.30415694,109820.0,109810.0,0.83948555]
[1756781400869,0.30415694,109820.0,109810.0,1.07604698]
[1756781401072,0.30415694,109820.0,109810.0,2.17912841]
[1756781402077,0.30415694,109820.0,109810.0,2.17812841]
[1756781402476,0.30415694,109820.0,109810.0,2.18067841]
[1756781402676,0.30415694,109820.0,109810.0,2.18367841]
[1756781402871,0.05415694,109820.0,109810.0,2.18367841]
[1756781403266,0.05415694,109820.0,109810.0,2.18167841]
[1756781403562,0.05415694,109820.0,109810.0,2.18267841]
[1756781403764,0.05415694,109820.0,109810.0,2.85030214]
[1756781404074,0.05415694,109820.0,109810.0,2.61374071]